{"text_format":"2","workbook":"xlsx","n_sheets":10,"sheets":["Resumo","FSUP","FSUP-I EQUIPE TÉCNICA","FSUP-II VIAGENS","FSUP-III Manutenção Operac","FSUP-IV Mobiliz Desmob","FSUP-V Det. custos Adm.","FSUP-VI Det. Desp Fiscais","FSUP-VII Det. Enc. Sociais","Memoria_Cálculo"],"not_rendered":{"charts":0,"images":0,"macros":0,"external_links":1,"defined_names":28,"comments":0,"pivot_tables":0},"unopened":[],"bounds":{"document_bytes":16777216,"sheet_cells":100000,"run_cost":"one","rows_first":2000,"rows_last":500,"rows_between":2000,"halvings":0,"cell_chars":16384,"cell_head_chars":4096},"cells_cut":0,"cells_raw":0,"read":"whole","date_system":"1900"}

{"sheet":"Resumo","index":0,"n_rows":3,"n_cols":14,"rows_kept":3,"cut":false,"hidden":false,"merged":[[2,0,2,12],[2,13,2,14],[0,0,0,12],[0,13,0,14],[1,0,1,12],[1,13,1,14]]}
["TOTAL DOS CUSTOS DIRETOS",{"$nulls":12},{"$f":"FSUP!N32","v":55634.95}]
["TOTAL DO CUSTOS INDIRETOS",{"$nulls":12},{"$f":"FSUP!N36","v":27253.090000000004}]
["TOTAL DA PROPOSTA",{"$nulls":12},{"$f":"FSUP!N37","v":82888.040000000008}]

{"sheet":"FSUP","index":1,"n_rows":42,"n_cols":14,"rows_kept":42,"cut":false,"hidden":false,"merged":[[45,0,45,14],[39,0,39,12],[39,13,39,14],[40,0,40,12],[40,13,40,14],[41,0,41,14],[42,1,42,14],[43,0,43,14],[44,0,44,14],[38,0,38,8],[38,9,38,14],[33,0,33,12],[33,13,33,14],[34,0,34,12],[34,13,34,14],[36,0,36,12],[36,13,36,14],[35,0,35,12],[35,13,35,14],[28,0,28,12],[28,13,28,14],[37,0,37,8],[37,9,37,14],[29,0,29,12],[29,13,29,14],[31,0,31,12],[31,13,31,14],[32,0,32,12],[32,13,32,14],[30,0,30,12],[30,13,30,14],[19,13,19,14],[27,0,27,12],[27,13,27,14],[21,0,21,12],[21,13,21,14],[22,0,22,12],[22,13,22,14],[23,0,23,14],[24,0,24,14],[25,0,25,12],[25,13,25,14],[26,0,26,12],[26,13,26,14],[12,0,12,12],[12,13,12,14],[20,0,20,12],[20,13,20,14],[15,0,15,12],[15,13,15,14],[16,0,16,12],[16,13,16,14],[17,0,17,12],[17,13,17,14],[14,0,14,12],[14,13,14,14],[13,0,13,14],[18,0,18,12],[18,13,18,14],[19,0,19,12],[8,0,8,14],[2,0,3,12],[2,13,2,14],[3,13,3,14],[4,0,4,14],[5,0,5,14],[6,0,6,3],[6,4,6,12],[6,13,6,14],[7,0,7,3],[7,4,7,12],[7,13,7,14],[10,0,10,12],[10,13,10,14],[11,0,11,12],[11,13,11,14],[9,0,9,14]]}
[]
[]
["PROPOSTA FINANCEIRA SUP. E APOIO A FISC. DE OBRA",{"$nulls":12},"CODIGO:"]
[{"$nulls":13},"FSUP"]
["NOME DA CONSULTORA:"]
[]
["PROJETO:",null,null,null,"OBJETO:",{"$nulls":8},"EDITAL:"]
["Reforma ",null,null,null,"Projeto Reforma 9ª SR"]
["SERVIÇOS PAGOS A PREÇO UNITÁRIO"]
["MOBILIZAÇÃO/DESMOBILIZAÇÃO"]
[" A1 - MOBILIZAÇÃO (FSUP-IV)",{"$nulls":12},{"$f":"'FSUP-IV Mobiliz Desmob'!H41","v":0}]
[" A2 - DESMOBILIZAÇÃO (FSUP-IV)",{"$nulls":12},{"$f":"'FSUP-IV Mobiliz Desmob'!L41","v":0}]
[" A - TOTAL DOS CUSTOS COM MOBILIZAÇÃO E DESMOBILIZAÇÃO",{"$nulls":12},{"$f":"N11+N12","v":0}]
["MÃO-DE-OBRA"]
[" B1 - TOTAL DE SALÁRIO DA EQUIPE COM VÍNCULO (FSUP-I)",{"$nulls":12},{"$f":"'FSUP-I EQUIPE TÉCNICA'!L42","v":37250.94}]
[" B2 - TOTAL DE SALÁRIO DO AUTÔNOMO (FSUP-I)",{"$nulls":12},{"$f":"'FSUP-I EQUIPE TÉCNICA'!M14","v":0}]
[" B - TOTAL DOS CUSTOS DE SALÁRIOS DA EQUIPE",{"$nulls":12},{"$f":"SUM(N15:O16)","v":37250.94}]
[{"$f":"CONCATENATE(\"C1 - ENCARGOS SOCIAiS DE B1 = \", 100*'FSUP-VII Det. Enc. Sociais'!F49,\"%DO B1\")","v":"C1 - ENCARGOS SOCIAiS DE B1 = 49,08%DO B1"},{"$nulls":12},{"$f":"ROUND(N15*'FSUP-VII Det. Enc. Sociais'!$F$49,2)","v":18282.759999999998}]
[" C2 - ENCARGOS SOCIAIS DE B2 (20% DO B2)",{"$nulls":12},{"$f":"ROUND(N16*0.2,2)","v":0}]
[" C - TOTAL DOS CUSTOS COM ENCARGOS SOCIAIS",{"$nulls":12},{"$f":"SUM(N18:O19)","v":18282.759999999998}]
[" D1 - CUSTO TOTAL DAS PASSAGENS AÉREAS E TERRESTRES (FSUP-II)",{"$nulls":12},{"$f":"'FSUP-II VIAGENS'!H32","v":0}]
[" D2 - CUSTO TOTAL DAS DIÁRIAS (FSUP-II)",{"$nulls":12},{"$f":"'FSUP-II VIAGENS'!M32","v":0}]
[" D - TOTAL DO CUSTO COM VIAGENS",{"$nulls":12},{"$f":"SUM(N21:O22)","v":0}]
[]
["MANUTENÇÃO OPERACIONAL"]
[" 1 - CUSTO DOS VEÍCULOS (FSUP-III, ITEM 1)",{"$nulls":12},{"$f":"'FSUP-III Manutenção Operac'!I14","v":0}]
[" 2 - CUSTO DA MANUTENÇÃO E ADMINISTRAÇÃO DO ESCRITÓRIO DE APOIO (FSUP-III, ITEM 2)",{"$nulls":12},{"$f":"'FSUP-III Manutenção Operac'!I25","v":0}]
[" 3 - EQUIPAMENTO (FSUP-III, ITEM 3)",{"$nulls":12},{"$f":"'FSUP-III Manutenção Operac'!I33","v":0}]
[" 4 - SERVIÇOS GRÁFICOS/COMPUTAÇÃO  (FSUP-III, ITEM 4)",{"$nulls":12},{"$f":"'FSUP-III Manutenção Operac'!I40","v":101.25}]
[]
["E - TOTAL DOS PREÇOS COM MANUTENÇÃO OPERACIONAL",{"$nulls":12},{"$f":"SUM(N26:O30)","v":101.25}]
["TOTAL DOS CUSTOS DIRETOS",{"$nulls":12},{"$f":"SUM(N13+N17+N20+N23+N31)","v":55634.95}]
[{"$f":"CONCATENATE(\"F - CUSTOS DE ADMINISTRAÇÃO = \",'FSUP-V Det. custos Adm.'!F38,\"% DO B\")","v":"F - CUSTOS DE ADMINISTRAÇÃO = 15% DO B"},{"$nulls":12},{"$f":"ROUND(N17*'FSUP-V Det. custos Adm.'!$F$38/100,2)","v":5587.64}]
[" G - REMUNERAÇÃO DA EMPRESA (LUCRO) = (10% DE A + B + C + D + E + F)",{"$nulls":12},{"$f":"ROUND(0.1*(N13+N17+N20+N23+N31+N33),2)","v":6122.26}]
[{"$f":"CONCATENATE(\"H - DESPESAS FISCAIS = (\",'FSUP-VI Det. Desp Fiscais'!G29,\"% DE (A + B + C + D + E + F + G)\")","v":"H - DESPESAS FISCAIS = (23,08% DE (A + B + C + D + E + F + G)"},{"$nulls":12},{"$f":"ROUND('FSUP-VI Det. Desp Fiscais'!$G$29/100*(N13+N17+N20+N23+N31+N33+N34),2)","v":15543.19}]
["TOTAL DO CUSTOS INDIRETOS",{"$nulls":12},{"$f":"SUM(N33:O35)","v":27253.090000000004}]
["TOTAL DA PROPOSTA",{"$nulls":12},{"$f":"N32+N36","v":82888.040000000008}]
["NOME DO INFORMANTE:",{"$nulls":8},"QUALIFICAÇÃO:"]
[]
["ASSINATURA:",{"$nulls":12},"DATA:"]
[]
["OBSERVAÇÃO:"]

{"sheet":"FSUP-I EQUIPE TÉCNICA","index":2,"n_rows":59,"n_cols":13,"rows_kept":59,"cut":false,"hidden":false,"merged":[[39,0,39,1],[40,0,40,2],[34,0,34,1],[43,7,43,12],[45,0,45,10],[45,11,45,12],[43,0,43,6],[37,0,37,1],[36,0,36,1],[51,0,51,12],[50,0,50,12],[58,0,58,12],[0,0,1,12],[47,0,47,12],[42,0,42,6],[42,7,42,12],[44,0,44,10],[44,11,44,12],[38,0,38,1],[35,0,35,1],[40,4,40,10],[41,0,41,10],[46,0,46,12],[48,0,48,12],[52,0,52,12],[59,0,59,12],[53,0,53,12],[54,0,54,12],[55,0,55,12],[57,0,57,12],[17,0,17,1],[18,0,18,1],[19,0,19,1],[33,0,33,1],[32,0,32,1],[29,0,29,1],[30,0,30,1],[31,0,31,1],[27,0,27,1],[28,0,28,1],[23,0,23,1],[24,0,24,1],[25,0,25,1],[26,0,26,1],[21,0,21,1],[22,0,22,1],[10,0,10,1],[11,0,11,1],[9,0,9,1],[13,0,13,1],[16,0,16,1],[15,0,15,1],[14,0,14,1],[12,0,12,1],[2,0,3,10],[2,11,2,12],[3,11,3,12],[4,0,4,12],[8,0,8,3],[8,4,8,10],[8,11,8,12],[6,2,6,10],[7,11,7,12],[7,2,7,10],[6,11,6,12],[5,0,5,14],[6,0,6,1]]}
[]
[]
["SALÁRIOS DA EQUIPE TÉCNICA",{"$nulls":10},"CODIGO:"]
[{"$nulls":11},"FSUP- I"]
["NOME DA CONSULTORA:"]
[]
["PROJETO:",null,"OBJETO:",{"$nulls":8},"EDITAL:"]
["Projeto ",null,"Projeto Reforma 9ª SR"]
["EQUIPE TÉCNICA",null,null,null,"COMPOSIÇÃO DOS SALÁRIOS POR PROFISSÃO/FUNÇÃO",{"$nulls":6},"CUSTOS "]
[{"$nulls":4},"SALÁRIO","ENC.","CUSTO ","R. EMP.","DESP.","SALÁRIO","HORA","SALÁRIO","SALÁRIO"]
["PROFISSÃO/FUNÇÃO",null,"S","QTD","CATEG.","SOCIAIS","ADM.","LUCRO","FISCAIS","MENSAL","TÉCNICA","B1","B2"]
[]
["NÍVEL SUPERIOR"]
["Arquiteto",null,"P2",1,11629.97,{"$f":"ROUND(E14*'FSUP-VII Det. Enc. Sociais'!$F$49,2)","v":5707.99},{"$f":"ROUND(E14*0.2,2)","v":2325.9899999999998},{"$f":"ROUND(0.1*(E14+F14+G14),2)","v":1966.4},{"$f":"ROUND('FSUP-VI Det. Desp Fiscais'!$G$29/100*(E14+F14+G14+H14),2)","v":4992.28},{"$f":"SUM(E14:I14)","v":26622.629999999997},{"$f":"ROUND(J14/176,2)","v":151.26},{"$f":"ROUND(D14*E14,2)","v":11629.97}]
["Engenheiro Civil",null,"P2",0.5,11629.97,{"$f":"ROUND(E15*'FSUP-VII Det. Enc. Sociais'!$F$49,2)","v":5707.99},{"$f":"ROUND(E15*0.2,2)","v":2325.9899999999998},{"$f":"ROUND(0.1*(E15+F15+G15),2)","v":1966.4},{"$f":"ROUND('FSUP-VI Det. Desp Fiscais'!$G$29/100*(E15+F15+G15+H15),2)","v":4992.28},{"$f":"SUM(E15:I15)","v":26622.629999999997},{"$f":"ROUND(J15/176,2)","v":151.26},{"$f":"ROUND(D15*E15,2)","v":5814.99}]
["Engenheiro Eletricista",null,"P2",0.5,11629.97,{"$f":"ROUND(E16*'FSUP-VII Det. Enc. Sociais'!$F$49,2)","v":5707.99},{"$f":"ROUND(E16*0.2,2)","v":2325.9899999999998},{"$f":"ROUND(0.1*(E16+F16+G16),2)","v":1966.4},{"$f":"ROUND('FSUP-VI Det. Desp Fiscais'!$G$29/100*(E16+F16+G16+H16),2)","v":4992.28},{"$f":"SUM(E16:I16)","v":26622.629999999997},{"$f":"ROUND(J16/176,2)","v":151.26},{"$f":"ROUND(D16*E16,2)","v":5814.99}]
["Engenheiro Telecomunicações",null,"P2",0.5,11629.97,{"$f":"ROUND(E17*'FSUP-VII Det. Enc. Sociais'!$F$49,2)","v":5707.99},{"$f":"ROUND(E17*0.2,2)","v":2325.9899999999998},{"$f":"ROUND(0.1*(E17+F17+G17),2)","v":1966.4},{"$f":"ROUND('FSUP-VI Det. Desp Fiscais'!$G$29/100*(E17+F17+G17+H17),2)","v":4992.28},{"$f":"SUM(E17:I17)","v":26622.629999999997},{"$f":"ROUND(J17/176,2)","v":151.26},{"$f":"ROUND(D17*E17,2)","v":5814.99}]
["Engenheiro Mecânico",null,"P2",0.5,11629.97,{"$f":"ROUND(E18*'FSUP-VII Det. Enc. Sociais'!$F$49,2)","v":5707.99},{"$f":"ROUND(E18*0.2,2)","v":2325.9899999999998},{"$f":"ROUND(0.1*(E18+F18+G18),2)","v":1966.4},{"$f":"ROUND('FSUP-VI Det. Desp Fiscais'!$G$29/100*(E18+F18+G18+H18),2)","v":4992.28},{"$f":"SUM(E18:I18)","v":26622.629999999997},{"$f":"ROUND(J18/176,2)","v":151.26},{"$f":"ROUND(D18*E18,2)","v":5814.99}]
[]
[]
["NÍVEL TÉCNICO"]
["Técnico Pleno",null,"T2",0.5,2298.02,{"$f":"ROUND(E22*'FSUP-VII Det. Enc. Sociais'!$F$49,2)","v":1127.8699999999999},{"$f":"ROUND(E22*0.2,2)","v":459.6},{"$f":"ROUND(0.1*(E22+F22+G22),2)","v":388.55},{"$f":"ROUND('FSUP-VI Det. Desp Fiscais'!$G$29/100*(E22+F22+G22+H22),2)","v":986.45},{"$f":"SUM(E22:I22)","v":5260.49},{"$f":"ROUND(J22/176,2)","v":29.89},{"$f":"ROUND(D22*E22,2)","v":1149.01}]
{"$rows_empty":12}
["NÍVEL AUXILIAR"]
[]
["Ajudante",null,"T4",1,1212,{"$f":"ROUND(E37*'FSUP-VII Det. Enc. Sociais'!$F$49,2)","v":594.85},{"$f":"ROUND(E37*0.2,2)","v":242.4},{"$f":"ROUND(0.1*(E37+F37+G37),2)","v":204.93},{"$f":"ROUND('FSUP-VI Det. Desp Fiscais'!$G$29/100*(E37+F37+G37+H37),2)","v":520.26},{"$f":"SUM(E37:I37)","v":2774.4399999999996},{"$f":"ROUND(J37/176,2)","v":15.76},{"$f":"ROUND(D37*E37,2)","v":1212}]
[]
["APOIO"]
[]
[]
["TOTAIS DOS  SALÁRIOS DA EQUIPE",{"$nulls":10},{"$f":"ROUND(SUM(L13:L41),2)","v":37250.94},{"$f":"SUM(M13:M41)","v":0}]
["NOME DO INFORMANTE:",{"$nulls":6},"QUALIFICAÇÃO:"]
[]
["ASSINATURA:",{"$nulls":10},"DATA:"]
[]
["OBSERVAÇÃO:"]
["1 - UTILIZAR  OS PARÂMETROS DE CLASSIFICAÇÃO  INDICADOS NO TSUP- II EQUIPE TÉCNICA"]
["2- UTILIZAR OS SÍMBOLOS INDICADOS NO TSUP-II EQUIPE TÉCNICA"]
["3- INDICAR A QUANTIDADE DE HOMENS POR CATEGORIA. "]
["4- INIDCAR O SALÁRIO BASE DA CATEGORIA"]
[{"$f":"CONCATENATE(\"5 - ENC. SOCIAIS, APLICAR NO MÁXIMO 20%  PARA AUTÔNOMOS E \",100*'FSUP-VII Det. Enc. Sociais'!F49,\"% PARA EMPREG. COM VÍNCULO DETALHAR NO FSUP-VII\")","v":"5 - ENC. SOCIAIS, APLICAR NO MÁXIMO 20%  PARA AUTÔNOMOS E 49,08% PARA EMPREG. COM VÍNCULO DETALHAR NO FSUP-VII"}]
["6- CUSTO DE ADMINISTRAÇÃO, APLICAR NO MÁXIMO 25% SOBRE O SALÁRIO BASE DA CATEGORIA"]
["7 - REMUN. DA EMPRESA (LUCRO), APLICAR NO MÁXIMO 10% SOBRE O SALÁRIO DA CATEG + ENCARGOS SOCIAIS + CUSTO DE ADM."]
["8 - DESP. FISCAIS, APLICAR O DF' CALCULADO NO FSUP-VI SOBRE O SALÁRIO DA CATEG. + ENC. SOCIAIS + CUSTO DE ADM. + LUCRO "]
["9- PREÇO DO HOMEM MÊS POR CATEGORIA = SOMATÓRIO DOS ITENS   (4) + (5) + (6) + (7) +(8) "]
["10- PREÇO DA HORA TÉCNICA = (9) / 176"]
["11 - SALÁRIOS DE B1 = SALARIO DOS EMPREGADOS COM VÍNCULO X QTD HOMEM MÊS. EXPORTAR O TOTAL PARA LINHA B1 DO FSUP"]
["12 - SALÁRIO DE B2 = SALÁRIO DO AUTÔNOMO X QTD HOMEM X MÊS. EXPORTAR O TOTAL PARA A LINHA B2 DO FSUP"]

{"sheet":"FSUP-II VIAGENS","index":3,"n_rows":47,"n_cols":15,"rows_kept":47,"cut":false,"hidden":false,"merged":[[43,0,43,14],[35,12,35,14],[36,0,36,14],[38,0,38,14],[35,0,35,11],[39,0,39,14],[40,0,40,14],[41,0,41,14],[0,0,1,14],[21,1,21,3],[22,1,22,3],[23,1,23,3],[27,1,27,3],[26,1,26,3],[25,1,25,3],[24,1,24,3],[11,1,11,3],[13,1,13,3],[14,1,14,3],[8,1,10,3],[12,10,13,10],[12,11,13,11],[12,12,13,12],[12,13,13,13],[33,0,33,5],[33,6,33,14],[34,0,34,11],[34,12,34,14],[12,14,13,14],[20,1,20,3],[32,6,32,14],[28,1,28,3],[29,1,29,3],[30,1,30,3],[31,0,31,5],[32,0,32,5],[12,1,12,3],[17,1,17,3],[18,1,18,3],[19,1,19,3],[15,1,15,3],[16,1,16,3],[9,10,10,10],[6,0,6,1],[6,2,6,14],[9,8,9,9],[2,0,3,12],[2,13,2,14],[3,13,3,14],[4,0,4,14],[9,13,9,14],[8,11,8,14],[8,0,10,0],[7,2,7,8],[9,11,9,12],[8,4,8,9],[9,4,10,4],[9,5,10,5],[9,6,9,7]]}
[]
[]
["VIAGENS DA EQUIPE TÉCNICA",{"$nulls":12},"CODIGO:"]
[{"$nulls":13},"FSUP-II"]
["NOME DA CONSULTORA:"]
[]
["PROJETO:",null,"OBJETO:"]
["Reforma ",null,"Projeto Reforma 9ª SR"]
["SIMBOLO","ROTEIRO (ida e volta)",null,null,"PASSAGENS",{"$nulls":6},"DIÁRIAS"]
[{"$nulls":4},"A/T","QTD","CUSTO",null,"PREÇO",null,"QTD","CUSTO",null,"PREÇO"]
[{"$nulls":6},"UNITÁRIO","TOTAL","UNITÁRIO","TOTAL",null,"UNITÁRIO","TOTAL","UNITÁRIO","TOTAL"]
{"$rows_empty":20}
["TOTAIS DE CUSTOS E DE PREÇOS DE PASSAGENS E DIÁRIAS",{"$nulls":6},{"$f":"SUM(H12:H31)","v":0},null,{"$f":"SUM(J12:J31)","v":0},null,null,{"$f":"SUM(M12:M31)","v":0},null,{"$f":"SUM(O12:O31)","v":0}]
["NOME DO INFORMANTE:",{"$nulls":5},"QUALIFICAÇÃO:"]
[]
["ASSINATURA:",{"$nulls":11},"DATA:"]
[]
["OBSERVAÇÕES:"]
["1 - VIAGENS DURANTE  A EXECUÇÃO DOS SERVIÇOS,  INCLUÍNDO REUNIÕES NA ADM. CENTRAL DA CODEVASF "]
["2 - NÂO INCLUIR  VIAGENS COM MOBILIZAÇÃO/DESMOBILIZAÇÃO DA EQUIPE QUE SERÃO CALCULADOS NO PSUP-IV"]
["3 - AS DIÁRIAS COBREM DESPESAS COM TAXI, ALIMENTAÇÃO E HOSPEDAGEM"]
["4 - INDICAR (A) PARA AS PASSAGENS  AÉREAS E (T) PARA AS TERRESTRES"]
["5 - CUSTO DO ITEM SEM LUCRO E SEM DESPESAS FISCAIS"]
["6 - EXPORTAR O TOTAL DO CUSTO COM PASSAGENS E DIÁRIAS, RESPECTIVAMENTE,  LINHAS  \"D1\" E \"D2\" DO PSUP"]
[{"$f":"CONCATENATE(\";6 - PREÇO = CUSTO + LUCRO+ DESPESAS FISCAIS E SERÁ CALCULADO COM A SEGUINTE FORMULA:CUSTO*(1+0,1)*(1+\",'FSUP-VI Det. Desp Fiscais'!G29,\"%)\")","v":";6 - PREÇO = CUSTO + LUCRO+ DESPESAS FISCAIS E SERÁ CALCULADO COM A SEGUINTE FORMULA:CUSTO*(1+0,1)*(1+23,08%)"}]
["7 - OS PREÇOS UNITÁRIOS SERÃO UTILIZADOS PARA FINS  DE FATURARAMENTO"]
["8 - AS PASSAGENS AÉREAS POSSUEM VALOR UNITÁRIO MÉDIO ENTRE OS TRECHOS SDU/BSB/SDU, GRU/BSB/GRU, POA/BSB/POA E SSA/BSB/SSA "]
["9 - AS PASSAGENS TERRESTRES SÃO COM BASE NO VALOR DA PASSAGEM DA CAPITAL AO INTERIOR DO ESTADO DA BAHIA (MAIOR ESTADO DA ÁREA DE ATUAÇÃO DA CODEVASF) "]

{"sheet":"FSUP-III Manutenção Operac","index":4,"n_rows":50,"n_cols":11,"rows_kept":50,"cut":false,"hidden":false,"merged":[[0,0,1,10],[37,0,37,4],[38,0,38,4],[47,0,47,10],[15,0,15,10],[24,0,24,6],[10,0,10,4],[11,0,11,4],[12,0,12,4],[13,0,13,6],[33,0,33,10],[39,0,39,6],[36,0,36,4],[14,0,14,10],[25,0,25,10],[32,0,32,6],[48,0,48,10],[40,0,40,10],[43,0,43,6],[45,0,45,10],[46,0,46,10],[42,0,42,5],[42,6,42,10],[44,7,44,10],[7,0,7,1],[7,2,7,8],[7,9,7,10],[8,0,9,4],[8,5,9,5],[8,6,9,6],[8,7,8,8],[8,9,8,10],[6,0,6,1],[6,2,6,8],[6,9,6,10],[2,0,3,8],[2,9,2,10],[3,9,3,10],[4,0,4,10]]}
[]
[]
[" MANUTENÇÃO OPERACIONAL",{"$nulls":8},"CODIGO:"]
[{"$nulls":9},"FSUP-III"]
["NOME DA CONSULTORA:"]
[]
["PROJETO:",null,"OBJETO:",{"$nulls":6},"EDITAL:"]
["Reforma",null,"Projeto Reforma 9ª SR"]
["DISCRIMINAÇÃO",{"$nulls":4},"UND","QTD","CUSTOS 2",null,"PREÇOS 3"]
[{"$nulls":7},"UNT","TOTAL","UNT","TOTAL"]
["1    VEÍCULOS"]
[{"$nulls":5},"mês",null,null,{"$f":"ROUND(G12*H12,2)","v":0},{"$f":"ROUND((1+0.1)*(1+'FSUP-VI Det. Desp Fiscais'!$G$29/100)*H12,2)","v":0},{"$f":"ROUND(G12*J12,2)","v":0}]
[{"$nulls":5},"mês",null,null,{"$f":"ROUND(G13*H13,2)","v":0},{"$f":"ROUND((1+0.1)*(1+'FSUP-VI Det. Desp Fiscais'!$G$29/100)*H13,2)","v":0},{"$f":"ROUND(G13*J13,2)","v":0}]
["Total dos custos e dos preços dos veículos",{"$nulls":7},{"$f":"SUM(I12:I13)","v":0},null,{"$f":"SUM(K12:K13)","v":0}]
[]
["2     MANUTENÇÃO E ADMINISTRAÇÃO DO ESCRITÓRIO "]
[{"$nulls":5},"mês",null,null,{"$f":"ROUND(G17*H17,2)","v":0},{"$f":"ROUND((1+0.1)*(1+'FSUP-VI Det. Desp Fiscais'!$G$29/100)*H17,2)","v":0},{"$f":"ROUND(G17*J17,2)","v":0}]
[{"$nulls":5},"mês",null,null,0,{"$f":"ROUND((1+0.1)*(1+'FSUP-VI Det. Desp Fiscais'!$G$29/100)*H18,2)","v":0},0]
[{"$nulls":5},"mês",null,null,0,{"$f":"ROUND((1+0.1)*(1+'FSUP-VI Det. Desp Fiscais'!$G$29/100)*H19,2)","v":0},0]
[{"$nulls":5},"mês",null,null,0,{"$f":"ROUND((1+0.1)*(1+'FSUP-VI Det. Desp Fiscais'!$G$29/100)*H20,2)","v":0},0]
[{"$nulls":5},"mês",null,null,0,{"$f":"ROUND((1+0.1)*(1+'FSUP-VI Det. Desp Fiscais'!$G$29/100)*H21,2)","v":0},0]
[{"$nulls":5},"mês",null,null,0,{"$f":"ROUND((1+0.1)*(1+'FSUP-VI Det. Desp Fiscais'!$G$29/100)*H22,2)","v":0},0]
[{"$nulls":5},"mês",null,null,0,{"$f":"ROUND((1+0.1)*(1+'FSUP-VI Det. Desp Fiscais'!$G$29/100)*H23,2)","v":0},0]
[]
[{"$nulls":8},{"$f":"SUM(I17:I24)","v":0},null,{"$f":"SUM(K17:K24)","v":0}]
["3     EQUIPAMENTOS "]
[{"$nulls":5},"mês",null,null,{"$f":"ROUND(G27*H27,2)","v":0},{"$f":"ROUND((1+0.1)*(1+'FSUP-VI Det. Desp Fiscais'!$G$29/100)*H27,2)","v":0},{"$f":"ROUND(G27*J27,2)","v":0}]
[{"$nulls":5},"mês",null,null,{"$f":"ROUND(G28*H28,2)","v":0},{"$f":"ROUND((1+0.1)*(1+'FSUP-VI Det. Desp Fiscais'!$G$29/100)*H28,2)","v":0},{"$f":"ROUND(G28*J28,2)","v":0}]
[{"$nulls":5},"mês",null,null,{"$f":"ROUND(G29*H29,2)","v":0},{"$f":"ROUND((1+0.1)*(1+'FSUP-VI Det. Desp Fiscais'!$G$29/100)*H29,2)","v":0},{"$f":"ROUND(G29*J29,2)","v":0}]
[{"$nulls":5},"mês",null,null,{"$f":"ROUND(G30*H30,2)","v":0},{"$f":"ROUND((1+0.1)*(1+'FSUP-VI Det. Desp Fiscais'!$G$29/100)*H30,2)","v":0},{"$f":"ROUND(G30*J30,2)","v":0}]
[{"$nulls":5},"mês",null,null,{"$f":"ROUND(G31*H31,2)","v":0},{"$f":"ROUND((1+0.1)*(1+'FSUP-VI Det. Desp Fiscais'!$G$29/100)*H31,2)","v":0},{"$f":"ROUND(G31*J31,2)","v":0}]
[]
[{"$nulls":8},{"$f":"SUM(I27:I32)","v":0},null,{"$f":"SUM(K27:K32)","v":0}]
["4     SERVIÇOS GRÁFICOS"]
["4.1 Relatório do Contrato (até 200 folhas)",{"$nulls":4},"unid.",1,41.25,{"$f":"ROUND(G35*H35,2)","v":41.25},{"$f":"ROUND((1+0.1)*(1+'FSUP-VI Det. Desp Fiscais'!$G$29/100)*H35,2)","v":55.85},{"$f":"ROUND(G35*J35,2)","v":55.85}]
["4.2 Impressão de Pranchas A1",{"$nulls":4},"unid.",6,10,{"$f":"ROUND(G36*H36,2)","v":60},{"$f":"ROUND((1+0.1)*(1+'FSUP-VI Det. Desp Fiscais'!$G$29/100)*H36,2)","v":13.54},{"$f":"ROUND(G36*J36,2)","v":81.239999999999995}]
[]
[]
[]
["Total dos custos e dos preços dos serv. gráficos/computação",{"$nulls":7},{"$f":"SUM(I35:I39)","v":101.25},null,{"$f":"SUM(K35:K39)","v":137.09}]
[]
["NOME DO INFORMANTE:",{"$nulls":5},"QUALIFICAÇÃO:"]
[]
["ASSINATURA:",{"$nulls":6},"DATA:"]
[]
["OBSERVAÇÃO:"]
["1. Aluguel de veículos inclui combustível e manutenção até o limite de 3000km/mês"]
["2. Custo do item sem lucro e despesas fiscais"]
[{"$f":"CONCATENATE(\"3. Preço = custo + lucro + despesas fiscais. Para calcular o preço aplica-se a seguinte fórmula: custo*(1+0,1)*(1+\",'FSUP-VI Det. Desp Fiscais'!G29,\"%)\")","v":"3. Preço = custo + lucro + despesas fiscais. Para calcular o preço aplica-se a seguinte fórmula: custo*(1+0,1)*(1+23,08%)"}]
["4. Exportar \" total custo\" para a  linha corresponde no FSUP. Os preços serão aplicados para fins de faturamento"]

{"sheet":"FSUP-IV Mobiliz Desmob","index":5,"n_rows":47,"n_cols":14,"rows_kept":47,"cut":false,"hidden":false,"merged":[[41,6,41,13],[8,4,10,4],[45,0,45,13],[4,0,4,13],[46,0,46,13],[6,12,6,13],[42,6,42,13],[43,0,43,10],[43,11,43,13],[7,12,7,13],[44,0,44,10],[9,6,9,7],[44,11,44,13],[9,8,9,9],[9,10,9,11],[9,12,9,13],[0,0,1,13],[8,10,8,13],[2,0,3,11],[2,12,2,13],[3,12,3,13],[6,0,6,1],[6,2,6,11],[8,6,8,9],[8,0,10,2],[8,5,10,5],[42,0,42,5],[37,0,37,2],[40,0,40,5],[8,3,10,3],[41,0,41,5]]}
[]
[]
["MOBILIZAÇÃO E DESMOBILIZAÇÃO",{"$nulls":11},"CODIGO:"]
[{"$nulls":12},"FSUP-IV"]
["NOME DA CONSULTORA:"]
[]
["PROJETO:",null,"OBJETO:",{"$nulls":9},"EDITAL:"]
["Reforma ",null,"Projeto Reforma 9ª SR"]
["DISCRIMINAÇÃO",null,null,"SÍMB.","UNID","QTD.","MOBILIZAÇÃO",null,null,null,"DESMOBILIZAÇÃO"]
[{"$nulls":6},"CUSTO",null,"PREÇO",null,"CUSTO",null,"PREÇO"]
[{"$nulls":6},"UNITÁRIO","TOTAL","UNITÁRIO","TOTAL","UNITÁRIO","TOTAL","UNITÁRIO","TOTAL"]
["1.      DESLOCAMENTO DA EQUIPE"]
[]
[{"$nulls":13},{"$f":"ROUND(F14*M14,2)","v":0}]
{"$rows_empty":26}
["TOTAIS DE CUSTOS E DE PREÇOS DE MOBILIZAÇÃO/DESMOBILIZAÇÃO",{"$nulls":6},{"$f":"SUM(H12:H40)","v":0},null,{"$f":"SUM(J12:J40)","v":0},null,{"$f":"SUM(L12:L40)","v":0},null,{"$f":"SUM(N12:N40)","v":0}]
["NOME DO INFORMANTE:",{"$nulls":5},"QUALIFICAÇÃO:"]
[]
["ASSINATURA:",{"$nulls":10},"DATA:"]
[]
["OBS: 1 - Custo do item sem lucro e sem despesas fiscais. Os totais detes deverão ser exportados para o item correspondente no FSUP"]
["         2 -  Preço = custo + lucro + despesas fiscais e será calculado com a seguinte fórmula: custo*(1+0,1)*(1+0,1396). O preço será utilizado para fins de faturamento"]

{"sheet":"FSUP-V Det. custos Adm.","index":6,"n_rows":44,"n_cols":7,"rows_kept":44,"cut":false,"hidden":false,"merged":[[0,0,1,6],[2,0,3,5],[4,0,4,6],[6,2,6,5],[8,0,9,0],[8,1,9,4],[8,5,8,6],[43,0,43,6],[10,1,10,4],[11,1,11,4],[12,1,12,4],[37,1,37,4],[42,0,42,6],[39,0,39,2],[39,3,39,6],[40,5,40,6]]}
[]
[]
["DETALHAMENTO DOS CUSTOS DE ADMINISTRAÇÃO",{"$nulls":5},"CODIGO:"]
[{"$nulls":6},"FSUP-V"]
["NOME DA CONSULTORA:"]
[]
["PROJETO:",null,"OBJETO:",null,null,null,"EDITAL:"]
["Reforma ",null,"Projeto Reforma 9ª SR"]
["SEQ.","DISCRIMINAÇÃO",null,null,null,"VALORES"]
[{"$nulls":5},"%","R$"]
[1,"Custos da equipe da administração central da empresa consultora(diretoria, pessoal técnico de apoio e pessoal administrativo não diretamente vinculado à prestação dos serviços)",null,null,null,10,{"$f":"ROUND(F11/$F$38*FSUP!N$33,2)","v":3725.09}]
[2,"Outras despesas que afetam o custo de produção como treinamento, biblioteca, programa de qualidade, auditoria interna e externa",null,null,null,3,{"$f":"ROUND(F12/$F$38*FSUP!N$33,2)","v":1117.53}]
[3,"Despesas com aluguéis, comunicação, manutenção e transporte não diretamente relacionados com o custo direto dos serviços",null,null,null,2,{"$f":"ROUND(F13/$F$38*FSUP!N$33,2)","v":745.02}]
{"$rows_empty":24}
[null,"TOTAIS DO CUSTO DE ADMINISTRAÇÃO",null,null,null,{"$f":"SUM(F11:F22)","v":15},{"$f":"SUM(G11:G37)","v":5587.6399999999994}]
[]
["NOME DO INFORMANTE: ",null,null,"QUALIFICAÇÃO: \n                                   "]
["ASSINATURA:",{"$nulls":4},"DATA: "]
["OBSERVAÇAO:"]
["1 - RELACIONAR OS CUSTOS DE ADMINISTRAÇÃO COM RESPECTIVOS PERCENTUAIS INCIDENTES NA MÃO -DE-OBRA DOS "]
["     SERVIÇOS"]

{"sheet":"FSUP-VI Det. Desp Fiscais","index":7,"n_rows":45,"n_cols":8,"rows_kept":45,"cut":false,"hidden":false,"merged":[[0,0,1,7],[23,0,23,4],[25,0,25,4],[33,0,33,7],[27,0,27,4],[28,0,28,4],[29,0,29,4],[29,5,29,7],[32,6,32,7],[32,0,32,5],[8,0,9,4],[10,0,10,4],[11,0,11,4],[12,0,12,4],[26,0,26,4],[30,5,30,7],[31,6,31,7],[30,0,30,4],[20,0,20,4],[2,0,3,6],[4,0,4,7],[5,0,5,7],[6,2,6,6],[31,0,31,5],[8,5,8,7],[24,0,24,4],[14,0,14,4],[21,0,21,4],[22,0,22,4],[13,0,13,4]]}
[]
[]
[" DETALHAMENTO DAS DESPESAS FISCAIS",{"$nulls":6},"CODIGO:"]
[{"$nulls":7},"FSUP-VI"]
["NOME DA CONSULTORA:"]
[]
["PROJETO:",null,"OBJETO:",{"$nulls":4},"EDITAL:"]
["Reforma ",null,"Projeto Reforma 9ª SR"]
["DISCRIMINAÇÃO 1",{"$nulls":4},"VALORES"]
[{"$nulls":5}," DF (%) 2","DF' (%) 3","R$"]
[]
["1 - ISS ",{"$nulls":4},5,{"$f":"(1/(1-$F$29/100))*F12","v":6.1538461538461542},{"$f":"ROUND(G12/G$29*FSUP!N$35,2)","v":4144.3}]
["2 - PIS",{"$nulls":4},1.65,{"$f":"(1/(1-$F$29/100))*F13","v":2.0307692307692307},{"$f":"ROUND(G13/G$29*FSUP!N$35,2)","v":1367.62}]
["3 - COFINS",{"$nulls":4},7.6,{"$f":"(1/(1-$F$29/100))*F14","v":9.3538461538461544},{"$f":"ROUND(G14/G$29*FSUP!N$35,2)","v":6299.33}]
["4 - CPRB",{"$nulls":4},4.5,{"$f":"(1/(1-$F$29/100))*F15","v":5.5384615384615383},{"$f":"ROUND(G15/G$29*FSUP!N$35,2)","v":3729.87}]
{"$rows_empty":13}
["TOTAIS DE DESPESAS FISCAIS ",{"$nulls":4},{"$f":"SUM(F12:F28)","v":18.75},{"$f":"ROUND(SUM(G12:G28),2)","v":23.08},{"$f":"SUM(H12:H28)","v":15541.119999999999}]
["NOME DO INFORMANTE:",{"$nulls":4},"QUALIFICAÇÃO:"]
[]
["ASSINATURA:",{"$nulls":5},"DATA:"]
[]
["Observação:"]
["1 - DISCRIMINAR OS TRIBUTOS QUE INCIDEM SOBRE OS CUSTOS DA PRESTAÇÃO DOS SERVIÇOS"]
[{"$f":"CONCATENATE(\"2 - DF = INDICAR OS % DE CADA TRIBUTO E A SOMA DOS MESMOS (ISS \",F12,\"% + PIS 1,65% + COFINS 7,60% = \",F29,\"%). \")","v":"2 - DF = INDICAR OS % DE CADA TRIBUTO E A SOMA DOS MESMOS (ISS 5% + PIS 1,65% + COFINS 7,60% = 18,75%). "}]
["OBS.: foi adotada a alíquota de 5% de ISS praticada em Goiânia para obras e serviços de engenharia."]
[]
["3 - AS DESPESAS FISCAIS (DF) INCIDEM SOBRE O TOTAL DA FATURA E NÃO SOBRE OS CUSTOS INCORRIDOS, "]
["     DEVENDO SER CALCULADO O DF' APLICANDO-SE A SEGUINTE FÓRMULA:"]
["DF' = { [ 1 / ( 1 - DF) ] - 1 } x 100"]
[{"$f":"CONCATENATE(\"DF' = { [ 1 / ( 1 - (\",F29,\"%) ] - 1 } x 100)\")","v":"DF' = { [ 1 / ( 1 - (18,75%) ] - 1 } x 100)"}]
[{"$f":"CONCATENATE(\"DF' = (\",G29,\"% . APLICAR O % ENCONTRADO NA LINHA H DO FSUP PARA CALCULAR AS DESPESAS FISCAIS)\")","v":"DF' = (23,08% . APLICAR O % ENCONTRADO NA LINHA H DO FSUP PARA CALCULAR AS DESPESAS FISCAIS)"}]
[" O TOTAL CALCULADO NA LINHA \"H\" DO PFSUP  SERÁ IMPORTADO PARA COMPOR ESTE DETALHAMENTO."]
[" O TOTAL CALCULADO NA LINHA \"H\" DO PFSUP  SERÁ IMPORTADO PARA COMPOR ESTE DETALHAMENTO."]

{"sheet":"FSUP-VII Det. Enc. Sociais","index":8,"n_rows":56,"n_cols":7,"rows_kept":56,"cut":false,"hidden":false,"merged":[[48,0,48,4],[35,1,35,4],[36,1,36,4],[37,1,37,4],[40,1,40,4],[45,1,45,4],[46,0,46,4],[42,0,42,6],[43,1,43,4],[44,1,44,4],[41,0,41,4],[39,1,39,4],[55,0,56,6],[0,0,1,6],[10,1,10,4],[2,0,3,5],[4,0,4,6],[5,0,5,6],[6,0,6,1],[6,2,6,5],[8,0,9,4],[8,5,8,6],[50,0,50,2],[50,3,50,6],[52,5,52,6],[20,0,20,4],[21,0,21,5],[22,1,22,4],[24,1,24,2],[25,1,25,2],[26,1,26,2],[27,1,27,2],[28,1,28,2],[29,1,29,2],[30,1,30,2],[31,1,31,2],[32,1,32,2],[38,1,38,4],[33,0,33,4],[34,1,34,6]]}
[]
[]
["DETALHAMENTO DOS ENCARGOS SOCIAIS",{"$nulls":5},"CODIGO:"]
[{"$nulls":6},"FSUP-VII"]
["NOME DA CONSULTORA:"]
[]
["PROJETO:",null,"OBJETO:",null,null,null,"EDITAL:"]
["Reforma ",null,"Projeto Reforma 9ª SR"]
["DISCRIMINAÇÃO",{"$nulls":4},"VALORES"]
[{"$nulls":5},"%","R$"]
["A","ENCARGOS SOCIAIS BÁSICOS"]
["A1","INSS",null,null,null,0,{"$f":"ROUND(F12*'FSUP-I EQUIPE TÉCNICA'!L$42,2)","v":0}]
["A2","SESI",null,null,null,1.4999999999999999E-2,{"$f":"ROUND(F13*'FSUP-I EQUIPE TÉCNICA'!L$42,2)","v":558.76}]
["A3","SENAI",null,null,null,0.01,{"$f":"ROUND(F14*'FSUP-I EQUIPE TÉCNICA'!L$42,2)","v":372.51}]
["A4","INCRA",null,null,null,2E-3,{"$f":"ROUND(F15*'FSUP-I EQUIPE TÉCNICA'!L$42,2)","v":74.5}]
["A5","SEBRAE",null,null,null,6.0000000000000001E-3,{"$f":"ROUND(F16*'FSUP-I EQUIPE TÉCNICA'!L$42,2)","v":223.51}]
["A6","Salário Educação",null,null,null,2.5000000000000001E-2,{"$f":"ROUND(F17*'FSUP-I EQUIPE TÉCNICA'!L$42,2)","v":931.27}]
["A7","Seguro contra acidente",null,null,null,0.03,{"$f":"ROUND(F18*'FSUP-I EQUIPE TÉCNICA'!L$42,2)","v":1117.53}]
["A8","FGTS",null,null,null,0.08,{"$f":"ROUND(F19*'FSUP-I EQUIPE TÉCNICA'!L$42,2)","v":2980.08}]
["A9","SECONCI",null,null,null,0.01,{"$f":"ROUND(F20*'FSUP-I EQUIPE TÉCNICA'!L$42,2)","v":372.51}]
["SUBTOTAL DE \"A\"",{"$nulls":4},{"$f":"ROUND(SUM(F12:F20),4)","v":0.17799999999999999},{"$f":"ROUND(SUM(G12:G20),2)","v":6630.67}]
[]
["B"," ENCARGOS SOCIAIS QUE RECEBEM INCIDÊNCIA DE \"A\""]
["B1","Repouso Semanal Remunerado",null,null,null,0,{"$f":"ROUND(F24*'FSUP-I EQUIPE TÉCNICA'!L$42,2)","v":0}]
["B2","Feriados",null,null,null,0,{"$f":"ROUND(F25*'FSUP-I EQUIPE TÉCNICA'!L$42,2)","v":0}]
["B3","Auxílio - Enfermidade",null,null,null,6.6E-3,{"$f":"ROUND(F26*'FSUP-I EQUIPE TÉCNICA'!L$42,2)","v":245.86}]
["B4","13º Salário  ",null,null,null,8.3299999999999999E-2,{"$f":"ROUND(F27*'FSUP-I EQUIPE TÉCNICA'!L$42,2)","v":3103}]
["B5","Licença Paternidade",null,null,null,5.9999999999999995E-4,{"$f":"ROUND(F28*'FSUP-I EQUIPE TÉCNICA'!L$42,2)","v":22.35}]
["B6","Faltas Justificadas",null,null,null,5.5999999999999999E-3,{"$f":"ROUND(F29*'FSUP-I EQUIPE TÉCNICA'!L$42,2)","v":208.61}]
["B7","Dias de Chuvas",null,null,null,0,{"$f":"ROUND(F30*'FSUP-I EQUIPE TÉCNICA'!L$42,2)","v":0}]
["B8","Auxílio Acidente de Trabalho",null,null,null,8.0000000000000004E-4,{"$f":"ROUND(F31*'FSUP-I EQUIPE TÉCNICA'!L$42,2)","v":29.8}]
["B9","Férias Gozadas",null,null,null,8.8700000000000001E-2,{"$f":"ROUND(F32*'FSUP-I EQUIPE TÉCNICA'!L$42,2)","v":3304.16}]
["B10","Salário Maternidade",null,null,null,2.0000000000000001E-4,{"$f":"ROUND(F33*'FSUP-I EQUIPE TÉCNICA'!L$42,2)","v":7.45}]
["SUBTOTAL DE  \"B\"",{"$nulls":4},{"$f":"ROUND(SUM(F24:F33),4)","v":0.18579999999999999},{"$f":"ROUND(SUM(G23:G33),2)","v":6921.23}]
[]
["C"," ENCARGOS SOCIAIS QUE NÃO RECEBEM INCIDÊNCIA DE \"A\""]
["C1","Aviso prévio Indenizado",null,null,null,4.3999999999999997E-2,{"$f":"ROUND(F37*'FSUP-I EQUIPE TÉCNICA'!L$42,2)","v":1639.04}]
["C2","Aviso prévio Trabalhado",null,null,null,1E-3,{"$f":"ROUND(F38*'FSUP-I EQUIPE TÉCNICA'!L$42,2)","v":37.25}]
["C3","Férias Indenizadas",null,null,null,1.7399999999999999E-2,{"$f":"ROUND(F39*'FSUP-I EQUIPE TÉCNICA'!L$42,2)","v":648.16999999999996}]
["C4","Depósito Rescisão Sem Justa Causa",null,null,null,2.41E-2,{"$f":"ROUND(F40*'FSUP-I EQUIPE TÉCNICA'!L$42,2)","v":897.75}]
["C5","Indenização Adicional",null,null,null,3.7000000000000002E-3,{"$f":"ROUND(F41*'FSUP-I EQUIPE TÉCNICA'!L$42,2)","v":137.83000000000001}]
["SUBTOTAL DE \"C\"",{"$nulls":4},{"$f":"ROUND(SUM(F37:F41),4)","v":9.0200000000000002E-2},{"$f":"ROUND(SUM(G37:G41),2)","v":3360.04}]
[]
["D"," REINCIDÊNCIAS"]
["D1","Reincidência de \"A\" sobre \"B\"",null,null,null,3.3099999999999997E-2,{"$f":"ROUND(F45*'FSUP-I EQUIPE TÉCNICA'!L$42,2)","v":1233.01}]
["D2","Reincidência de \"A\" sobre Aviso prévio Trabalhado e FGTS sobre Aviso prévio Indenizado",null,null,null,3.7000000000000002E-3,{"$f":"ROUND(F46*'FSUP-I EQUIPE TÉCNICA'!L$42,2)","v":137.83000000000001}]
["SUBTOTAL DE \"D\"",{"$nulls":4},{"$f":"SUM(F45:F46)","v":3.6799999999999999E-2},{"$f":"ROUND(SUM(G45:G46),2)","v":1370.84}]
[]
["TOTAIS DE ENCARGOS SOCIAIS",{"$nulls":4},{"$f":"ROUND(F21+F34+F42+F47,4)","v":0.49080000000000001},{"$f":"ROUND(G21+G34+G42+G47,2)","v":18282.78}]
["NOME DO INFORMANTE:",null,null,"QUALIFICAÇÃO:"]
[]
["ASSINATURA:",{"$nulls":4},"DATA:"]
[]
["Observação:"]
["1 - DISCRIMINAR OS ENCARGOS SOCIAIS COM SEUS RESPECTIVOS PERCENTUAS TOTALIZANDO OS MESMOS. "]
["2 - O % TOTAL SERÁ APLICADO PARA CÁLCULAR OS E. SOCIAIS INCIDENTES NA MÃO-DE-OBRA COM VÍNCULO, LINHA \"B1\" DO FSUP"]

{"sheet":"Memoria_Cálculo","index":9,"n_rows":10,"n_cols":5,"rows_kept":10,"cut":false,"hidden":false,"merged":[[0,0,0,4],[1,0,1,4]]}
["Memória de Cálculo Equipe Técnica"]
["Atividades e Prazos"]
[]
["Profissional","Quantidade","Prazo Dias","Prazo Mês","Atividades"]
["Arquiteto",1,30,1,"Coordenar o contrato, elaborar projeto arquitetônico, compatibilizar os projetos elétrico (lógico e telefônico), estrutural, hidrosanitário, incêndio, paisagístico; elaborar o memorial descritivo."]
["Eng. Civil",1,15,0.5,"Avaliar a situação do telhado e, eventualmente, elaborar projeto de adequação. Elaborar adequação do projeto hidrosanitário. Avaliar possibilidade de instalação de elevador/cápsula e, eventualmente, elaboar projeto de adequação estrutural."]
["Eng. Eletricista",1,15,0.5,"Avalair projeto elétrico existente e necessidade de adequação às demandas dos atuais equipamentos. Elaborar projeto de rede lógica, telefônica e circuito de TV/Sistema de Segurança."]
["Eng. Mecânico",1,15,0.5,"Avaliar viablidade de recuperação/reforma do Sistema de Ar Condicionado Central ou instalação de outro sistema, avaliar a possibilidade de instalação de elevador/cápsula e, eventualmente, elaborar projeto de instalação."]
["Tecnico Pleno (Cadista)",1,15,0.5,"Desenhar as Plantas/Projetos."]
["Ajudante",2,15,1,"Apoiar a equipe técnica de Arquitetura e Engenharia nos levantamentos."]